bitfinex/quotes_SOLUSD_20251118
["timestamp","ask_amount","ask_price","bid_price","bid_amount"]
[1763425290904,101.98,131.15,131.13,9.78882769]
[1763425291200,101.98,131.14,131.13,9.78882769]
[1763425291722,101.98,131.14,131.1,10.50882769]
[1763425292013,101.98,131.14,131.11,0.72]
[1763425295704,102.68,131.13,131.06,6.42346485]
[1763425296023,18.12096,131.09,131.06,0.72]
[1763425299733,0.7,131.08,131.04,10.50882769]
[1763425299911,18.82096,131.09,131.05,0.72]
[1763425301220,18.12096,131.09,131.05,0.72]
[1763425303823,101.98,131.11,131.05,7.14346485]
[1763425304125,101.98,131.11,131.07,9.78882769]
[1763425304313,101.98,131.11,131.09,9.78882769]
[1763425304716,102.65,131.11,131.07,9.78882769]
[1763425304920,102.65,131.11,131.07,10.46882769]
[1763425305629,101.98,131.11,131.07,10.46882769]
[1763425305852,102.65,131.1,131.07,10.46882769]
[1763425306130,102.65,131.1,131.06,9.78882769]
[1763425306332,101.98,131.09,131.06,9.78882769]
[1763425306535,101.98,131.09,131.06,0.68]
[1763425306711,101.98,131.09,131.08,9.78882769]
[1763425307235,101.98,131.09,131.08,0.68]
[1763425310639,104.49351049,131.09,131.06,9.78882769]
[1763425310815,104.49351049,131.09,131.08,9.78882769]
[1763425311209,105.16351049,131.09,131.05,0.68]
[1763425311410,2.51351049,131.07,131.05,10.46882769]
[1763425311823,101.98,131.08,131.05,10.46882769]
[1763425312125,101.98,131.08,131.05,9.96882769]
[1763425312348,101.98,131.08,131.06,0.68]
[1763425314017,104.49351049,131.08,131.06,0.68]
[1763425314915,105.9088908,131.08,131.06,0.68]
[1763425315328,3.9288908,131.07,131.06,0.68]
[1763425315734,105.9088908,131.08,131.06,0.68]
[1763425315945,3.9288908,131.07,131.06,0.68]
[1763425316127,105.9088908,131.08,131.06,0.68]
[1763425316946,105.9088908,131.08,131.05,15.71229254]
[1763425317152,105.9088908,131.08,131.06,0.68]
[1763425317936,101.98,131.08,131.06,0.68]
[1763425318120,105.9088908,131.08,131.06,0.68]
[1763425318325,105.9088908,131.08,131.06,7.10346485]
[1763425318742,101.98,131.08,131.07,16.89229254]
[1763425319436,101.98,131.08,131.07,10.46882769]
[1763425320450,101.98,131.08,131.07,19.0334475]
[1763425320754,0.67,131.16,131.08,9.78882769]
[1763425320955,0.67,131.16,131.13,9.78882769]
[1763425320956,3.9288908,131.15,131.13,9.78882769]
[1763425321145,22.0498508,131.14,131.13,9.78882769]
[1763425321639,22.7198508,131.14,131.12,9.78882769]
[1763425321937,4.5988908,131.13,131.12,9.78882769]
[1763425322545,18.79096,131.14,131.12,9.78882769]
[1763425322722,3.9288908,131.13,131.12,16.20812755]
[1763425322925,9.37432231,131.13,131.12,16.20812755]
[1763425323340,9.37432231,131.13,131.12,9.78882769]
[1763425323515,9.37432231,131.13,131.12,10.46882769]
[1763425323741,27.49528231,131.14,131.12,10.46882769]
[1763425323953,27.49528231,131.14,131.13,6.4296727]
[1763425324148,18.12096,131.14,131.13,6.4296727]
[1763425324751,9.37432231,131.15,131.13,7.1096727]
[1763425324951,120.77096,131.17,131.13,7.1096727]
[1763425325264,9.37432231,131.15,131.13,7.1096727]
[1763425325886,9.37432231,131.16,131.13,7.1096727]
[1763425326666,9.37432231,131.16,131.15,9.78882769]
[1763425327477,9.37432231,131.17,131.15,9.78882769]
[1763425327677,9.57432231,131.18,131.15,16.89850039]
[1763425327881,9.57432231,131.18,131.17,9.78882769]
[1763425328081,0.67,131.17,131.15,6.4296727]
[1763425328384,9.37432231,131.16,131.13,16.21850039]
[1763425328689,0.67,131.17,131.13,16.21850039]
[1763425328887,0.67,131.16,131.13,16.21850039]
[1763425329341,0.67,131.16,131.14,6.4296727]
[1763425329662,9.37432231,131.15,131.14,9.78882769]
[1763425330048,9.37432231,131.15,131.14,16.21850039]
[1763425330360,10.04432231,131.15,131.14,9.78882769]
[1763425330669,9.37432231,131.15,131.14,9.78882769]
[1763425330856,10.04432231,131.15,131.14,9.78882769]
[1763425331573,9.37432231,131.15,131.14,9.78882769]
[1763425331773,9.37432231,131.17,131.15,9.78882769]
[1763425331955,9.57432231,131.18,131.15,16.91850039]
[1763425332156,111.55432231,131.18,131.15,16.91850039]
[1763425332665,9.37432231,131.17,131.15,16.91850039]
[1763425333063,9.37432231,131.16,131.15,16.21850039]
[1763425334055,9.37432231,131.17,131.15,16.91850039]
[1763425334377,9.37432231,131.17,131.16,0.7]
[1763425335560,120.30096,131.18,131.17,9.78882769]
[1763425335758,129.67528231,131.18,131.17,9.78882769]
[1763425336067,129.67528231,131.18,131.17,0.7]
[1763425336568,102.18,131.18,131.17,7.1296727]
[1763425337159,0.2,131.18,131.17,7.1296727]
[1763425337682,0.2,131.18,131.17,0.7]
[1763425338254,0.2,131.18,131.17,3.76032668]
[1763425339181,0.2,131.18,131.17,22.07492975]
[1763425339761,0.2,131.18,131.17,18.31460307]
[1763425339985,10.24432231,131.18,131.17,9.78882769]
[1763425342488,10.24432231,131.18,131.15,9.78882769]
[1763425342691,9.37432231,131.16,131.15,9.78882769]
[1763425342881,3.92431841,131.16,131.15,9.78882769]
[1763425343976,3.92431841,131.16,131.15,10.47882769]
[1763425345268,3.92431841,131.16,131.15,9.78882769]
[1763425345660,3.92431841,131.16,131.15,16.18581155]
[1763425345889,0.87,131.18,131.15,16.87581155]
[1763425346088,0.87,131.18,131.15,16.18581155]
[1763425346294,3.92431841,131.16,131.15,16.18581155]
[1763425346477,101.98,131.17,131.15,16.18581155]
[1763425346665,101.98,131.17,131.16,6.39698386]
[1763425346868,0.2,131.18,131.17,9.78882769]
[1763425347070,0.2,131.18,131.17,10.47882769]
[1763425347695,0.2,131.18,131.17,14.4031461]
[1763425348599,0.2,131.18,131.17,27.24174582]
[1763425349206,0.2,131.18,131.17,14.4031461]
[1763425349365,0.2,131.19,131.17,28.00411526]
[1763425349571,0.2,131.19,131.18,14.4031461]
[1763425350384,0.2,131.19,131.18,17.46253651]
[1763425351401,0.2,131.19,131.18,25.96765116]
[1763425352268,0.2,131.2,131.19,9.78882769]
[1763425352471,0.2,131.2,131.19,33.28635932]
[1763425352667,0.2,131.22,131.21,27.90978769]
[1763425352905,3.92431841,131.31,131.22,32.71882769]
[1763425353067,0.2,131.32,131.28,13.7131461]
[1763425353482,0.2,131.32,131.31,9.78882769]
[1763425353705,4.12431841,131.32,131.31,9.78882769]
[1763425353908,4.12431841,131.32,131.28,9.78882769]
[1763425354106,4.12431841,131.32,131.28,20.0834773]
[1763425354288,0.67,131.31,131.28,20.0834773]
[1763425354799,10.01827039,131.31,131.27,9.78882769]
[1763425355111,9.34827039,131.3,131.27,9.78882769]
[1763425355285,0.67,131.3,131.27,9.78882769]
[1763425356392,10.01827039,131.3,131.27,9.78882769]
[1763425356711,10.01827039,131.3,131.26,4.81431841]
[1763425356712,0.87,131.32,131.26,19.13709808]
[1763425356916,10.21827039,131.32,131.29,9.78882769]
[1763425357430,0.2,131.32,131.29,10.47882769]
[1763425358392,0.2,131.32,131.29,9.34827039]
[1763425358590,0.2,131.32,131.31,9.78882769]
[1763425358798,0.2,131.32,131.31,19.82709808]
[1763425360224,0.2,131.32,131.31,10.47882769]
[1763425360394,0.2,131.32,131.31,19.82709808]
[1763425363691,0.2,131.32,131.31,41.9401206]
[1763425364195,0.72,131.39,131.35,9.78882769]
[1763425364413,0.72,131.39,131.35,19.85709808]
[1763425364806,0.72,131.39,131.35,37.97805808]
[1763425365616,10.06827039,131.39,131.35,27.90978769]
[1763425365794,9.34827039,131.38,131.35,9.78882769]
[1763425365994,10.06827039,131.38,131.35,9.78882769]
[1763425366222,9.34827039,131.36,131.32,18.12096]
[1763425366403,9.34827039,131.36,131.3,18.84096]
[1763425366404,9.34827039,131.36,131.33,9.78882769]
[1763425366595,10.06827039,131.35,131.32,9.78882769]
[1763425366803,0.72,131.35,131.32,9.78882769]
[1763425367924,0.72,131.38,131.34,9.34827039]
[1763425368123,10.06827039,131.38,131.35,9.78882769]
[1763425368324,9.34827039,131.37,131.33,9.78882769]
[1763425368620,9.34827039,131.36,131.32,9.78882769]
[1763425368831,10.06827039,131.36,131.32,19.85709808]
[1763425369426,10.06827039,131.36,131.32,37.97805808]
[1763425369933,0.72,131.35,131.32,37.97805808]
[1763425370104,0.72,131.36,131.32,37.97805808]
[1763425370423,18.12096,131.41,131.35,9.78882769]
[1763425370424,10.06827039,131.38,131.35,9.78882769]
[1763425371004,0.72,131.38,131.35,9.78882769]
[1763425371604,9.34827039,131.39,131.35,9.78882769]
[1763425371934,10.06827039,131.4,131.35,19.85709808]
[1763425372109,9.34827039,131.4,131.37,9.78882769]
[1763425372444,0.72,131.4,131.37,9.78882769]
[1763425372629,0.72,131.39,131.37,9.78882769]
[1763425374321,10.06827039,131.39,131.35,10.06827039]
[1763425374520,10.06827039,131.39,131.36,9.78882769]
[1763425374827,0.72,131.38,131.36,9.78882769]
[1763425375344,9.34827039,131.39,131.36,9.78882769]
[1763425375640,0.72,131.39,131.36,9.78882769]
[1763425376018,10.06827039,131.39,131.36,9.78882769]
[1763425376621,0.72,131.39,131.36,0.72]
[1763425376824,0.72,131.4,131.36,6.67728378]
[1763425377028,0.72,131.39,131.37,9.78882769]
[1763425377431,0.72,131.39,131.36,9.78882769]
[1763425378139,0.72,131.39,131.35,18.84096]
[1763425378315,0.72,131.39,131.36,9.78882769]
[1763425378931,5.95728378,131.38,131.34,9.78882769]
[1763425379335,0.72,131.37,131.34,29.34978769]
[1763425379523,6.67728378,131.37,131.34,28.62978769]
[1763425379724,6.67728378,131.37,131.33,9.78882769]
[1763425379925,6.67728378,131.37,131.33,27.90978769]
[1763425379926,0.72,131.36,131.33,27.90978769]
[1763425380124,0.72,131.36,131.33,28.62978769]
[1763425380351,5.95728378,131.35,131.28,0.72]
[1763425380646,0.72,131.36,131.29,18.12096]
[1763425380647,5.95728378,131.31,131.29,18.12096]
[1763425380944,9.27180444,131.41,131.26,6.67728378]
[1763425380945,0.72,131.35,131.27,5.95728378]
[1763425381116,5.95728378,131.35,131.3,5.95728378]
[1763425381448,0.72,131.34,131.32,9.78882769]
[1763425381610,5.95728378,131.33,131.3,9.78882769]
[1763425381814,0.72,131.34,131.3,9.78882769]
[1763425382037,0.72,131.33,131.3,10.50882769]
[1763425382216,5.95728378,131.34,131.32,9.78882769]
[1763425382712,18.12096,131.38,131.32,9.78882769]
[1763425383043,107.93728378,131.37,131.34,9.78882769]
[1763425383446,0.72,131.36,131.34,9.78882769]
[1763425383939,0.72,131.36,131.32,5.95728378]
[1763425383940,0.72,131.36,131.32,6.67728378]
[1763425384128,6.67728378,131.36,131.31,5.95728378]
[1763425384331,5.95728378,131.35,131.31,9.78882769]
[1763425384642,6.67728378,131.35,131.31,10.50882769]
[1763425384951,6.67728378,131.34,131.3,9.78882769]
[1763425385440,6.67728378,131.34,131.3,10.50882769]
[1763425385643,5.95728378,131.35,131.31,0.72]
[1763425385815,101.98,131.37,131.33,15.74611147]
[1763425386011,101.98,131.37,131.35,9.78882769]
[1763425386219,6.67728378,131.38,131.35,9.78882769]
[1763425386954,0.72,131.37,131.34,9.78882769]
[1763425387152,5.95728378,131.38,131.34,10.50882769]
[1763425387321,6.67728378,131.38,131.34,10.50882769]
[1763425387521,0.72,131.37,131.34,10.50882769]
[1763425388744,6.67728378,131.37,131.33,9.78882769]
[1763425388947,0.72,131.37,131.33,10.50882769]
[1763425389251,6.67728378,131.36,131.33,10.50882769]
[1763425389465,5.95728378,131.35,131.32,9.78882769]
[1763425389625,0.72,131.35,131.32,9.78882769]
[1763425389826,0.72,131.38,131.34,9.78882769]
[1763425390053,5.95728378,131.37,131.34,9.78882769]
[1763425390253,5.95728378,131.37,131.33,9.78882769]
[1763425390456,18.12096,131.41,131.35,9.78882769]
[1763425390626,5.95728378,131.37,131.32,24.07824378]
[1763425390834,5.95728378,131.37,131.33,9.78882769]
[1763425391047,5.95728378,131.35,131.33,9.78882769]
[1763425391335,6.67728378,131.34,131.3,7.02446978]
[1763425391553,6.67728378,131.34,131.31,9.78882769]
[1763425391953,5.95728378,131.34,131.31,10.45882769]
[1763425392454,6.66728378,131.35,131.31,10.45882769]
[1763425392954,5.95728378,131.37,131.33,9.78882769]
[1763425393139,24.07824378,131.38,131.33,15.74611147]
[1763425393340,24.78824378,131.38,131.35,9.78882769]
[1763425393543,0.71,131.38,131.35,9.78882769]
[1763425394049,6.66728378,131.38,131.35,9.78882769]
[1763425394852,5.95728378,131.36,131.32,31.874805]
[1763425395155,0.71,131.37,131.32,16.12869353]
[1763425395156,5.95728378,131.34,131.32,16.12869353]
[1763425395464,5.95728378,131.34,131.32,9.78882769]
[1763425395638,5.95728378,131.34,131.32,16.12869353]
[1763425395834,6.66728378,131.35,131.32,16.12869353]
[1763425396752,5.95728378,131.35,131.32,16.12869353]
[1763425397131,6.66728378,131.35,131.33,6.33986584]
[1763425398056,0.71,131.35,131.33,6.33986584]
[1763425398230,6.66728378,131.35,131.34,16.12869353]
[1763425398638,6.66728378,131.35,131.34,9.78882769]
[1763425398843,6.66728378,131.35,131.34,16.12869353]
[1763425400176,0.71,131.35,131.34,9.78882769]
[1763425400473,6.66728378,131.35,131.34,9.78882769]
[1763425401162,6.66728378,131.35,131.34,16.12869353]
[1763425401469,0.7,131.38,131.35,9.78882769]
[1763425401652,0.7,131.38,131.36,6.38526499]
[1763425401844,107.93728378,131.39,131.36,7.04526499]
[1763425402044,0.7,131.38,131.37,6.38526499]
[1763425402566,6.65728378,131.38,131.37,6.38526499]
[1763425402961,6.65728378,131.38,131.36,6.38526499]
[1763425403265,6.65728378,131.37,131.36,6.38526499]
[1763425403975,6.65728378,131.37,131.35,16.17409268]
[1763425404146,6.65728378,131.36,131.35,9.78882769]
[1763425404738,3.20399926,131.36,131.35,9.78882769]
[1763425405773,0.7,131.36,131.35,9.78882769]
[1763425405941,3.20399926,131.36,131.35,9.78882769]
[1763425406447,3.20399926,131.36,131.35,6.39174582]
[1763425406651,21.32495926,131.36,131.34,16.18057351]
[1763425406857,3.20399926,131.35,131.34,16.18057351]
[1763425407044,105.18399926,131.35,131.34,9.78882769]
[1763425408056,105.18399926,131.35,131.34,16.18258558]
[1763425408265,105.18399926,131.35,131.34,16.18163377]
[1763425408957,105.18399926,131.35,131.34,9.78882769]
[1763425409271,3.20399926,131.35,131.33,8.40595971]
[1763425409485,18.12096,131.36,131.34,6.39453528]
[1763425409650,18.12096,131.36,131.35,6.39453528]
[1763425410650,21.32495926,131.36,131.34,6.39453528]
[1763425410850,0.7,131.35,131.34,6.39453528]
[1763425411166,3.20399926,131.35,131.34,6.39453528]
[1763425411669,3.20399926,131.35,131.33,8.40595971]
[1763425411858,3.20399926,131.34,131.33,18.1947874]
[1763425412169,105.20399926,131.34,131.33,18.1947874]
[1763425412543,105.20399926,131.34,131.33,18.8547874]
[1763425412768,105.20399926,131.34,131.33,10.44882769]
[1763425413357,2.50399926,131.35,131.34,9.78882769]
[1763425413567,0.7,131.37,131.34,18.97137973]
[1763425413783,2.50399926,131.37,131.36,9.78882769]
[1763425413987,2.50399926,131.37,131.36,18.31137973]
[1763425414969,3.20399926,131.37,131.36,9.78882769]
[1763425415275,2.50399926,131.37,131.36,9.78882769]
[1763425415679,3.20399926,131.37,131.36,16.1799566]
[1763425416266,2.50399926,131.37,131.36,9.78882769]
[1763425416868,3.20399926,131.37,131.36,9.78882769]
[1763425417384,3.20399926,131.37,131.36,16.18216804]
[1763425418661,3.20399926,131.37,131.36,9.78882769]
[1763425419267,3.20399926,131.37,131.36,18.31137973]
[1763425419480,3.20399926,131.37,131.36,9.78882769]
[1763425419771,3.20399926,131.37,131.36,18.31137973]
[1763425420780,3.20399926,131.37,131.36,9.78882769]
[1763425420989,3.20399926,131.37,131.36,16.18659334]
[1763425421168,3.20399926,131.37,131.36,9.78882769]
[1763425421690,3.20399926,131.37,131.35,8.52255204]
[1763425421877,123.98495926,131.36,131.34,8.52255204]
[1763425422076,3.16399926,131.35,131.34,18.31137973]
[1763425422787,3.16399926,131.35,131.34,9.78882769]
[1763425423407,2.50399926,131.35,131.34,9.78882769]
[1763425423707,2.50399926,131.35,131.34,23.11776726]
[1763425423989,2.50399926,131.35,131.34,22.39776726]
[1763425424189,3.16399926,131.35,131.34,22.39776726]
[1763425424393,2.50399926,131.35,131.34,22.39776726]
[1763425424790,120.82096,131.36,131.35,9.78882769]
[1763425425000,123.32495926,131.36,131.35,9.78882769]
[1763425425698,123.98495926,131.36,131.35,9.78882769]
[1763425425877,123.98495926,131.36,131.35,18.32984961]
[1763425426794,123.98495926,131.36,131.34,22.39776726]
[1763425426995,121.48096,131.36,131.35,8.54110482]
[1763425427180,123.98495926,131.36,131.34,22.39776726]
[1763425427385,2.50399926,131.35,131.34,9.78882769]
[1763425427701,3.16399926,131.35,131.34,9.78882769]
[1763425428914,2.50399926,131.35,131.34,9.78882769]
[1763425429277,3.16399926,131.35,131.34,9.78882769]
[1763425429480,3.16399926,131.35,131.34,22.39776726]
[1763425429991,120.82096,131.36,131.34,22.39776726]
[1763425430172,3.16399926,131.35,131.34,22.39776726]
[1763425430371,2.50399926,131.35,131.34,22.39776726]
[1763425430787,3.16399926,131.35,131.34,22.39776726]
[1763425431300,3.16399926,131.35,131.34,9.78882769]
[1763425436407,2.50399926,131.35,131.34,9.78882769]
[1763425436571,2.50399926,131.35,131.34,22.39776726]
[1763425436772,3.91260156,131.35,131.34,22.39776726]
[1763425437176,125.39356156,131.36,131.34,22.39776726]
[1763425437786,124.73356156,131.36,131.34,22.39776726]
[1763425437981,0.66,131.35,131.34,22.39776726]
[1763425438589,124.73356156,131.36,131.34,22.39776726]
[1763425438794,125.39356156,131.36,131.34,22.39776726]
[1763425441209,102.7,131.36,131.35,23.11776726]
[1763425441408,4.57260156,131.4,131.36,9.78882769]
[1763425441614,102.7,131.42,131.4,9.78882769]
[1763425441792,102.7,131.41,131.4,9.78882769]
[1763425442309,102.7,131.41,131.39,8.55111843]
[1763425442510,103.36,131.41,131.39,8.55111843]
[1763425442692,3.91260156,131.4,131.38,23.33550534]
[1763425443011,3.91260156,131.39,131.38,9.78882769]
[1763425443797,102.7,131.41,131.38,10.50882769]
[1763425444000,106.61260156,131.41,131.4,8.54900619]
[1763425444814,106.61260156,131.41,131.39,8.54900619]
[1763425444815,107.27260156,131.41,131.39,8.54900619]
[1763425445021,3.91260156,131.4,131.39,8.54900619]
[1763425445220,3.91260156,131.4,131.38,9.78882769]
[1763425445519,3.91260156,131.4,131.39,8.53695627]
[1763425446405,102.7,131.41,131.39,0.72]
[1763425446605,0.86,131.45,131.41,9.78882769]
[1763425446805,4.11260156,131.45,131.44,6.3955658]
[1763425447229,0.2,131.45,131.44,6.3955658]
[1763425447418,0.2,131.45,131.44,16.18439349]
[1763425447924,4.77260156,131.45,131.44,13.90142925]
[1763425448114,4.77260156,131.45,131.44,16.1790458]
[1763425448425,4.77260156,131.45,131.44,9.78882769]
[1763425448727,4.77260156,131.45,131.44,16.1790458]
[1763425449904,4.77260156,131.45,131.44,9.78882769]
[1763425451223,4.77260156,131.45,131.43,20.29164736]
[1763425451431,22.69356156,131.44,131.43,23.69025694]
[1763425451637,125.39356156,131.44,131.43,23.69025694]
[1763425451835,125.39356156,131.44,131.43,9.78882769]
[1763425452935,124.73356156,131.44,131.43,9.78882769]
[1763425453142,102.7,131.44,131.43,39.80767853]
[1763425453324,102.7,131.44,131.43,33.41746042]
[1763425453636,102.7,131.44,131.43,41.94461805]
[1763425454722,102.7,131.44,131.43,33.41746042]
[1763425456234,0.2,131.45,131.44,9.78882769]
[1763425456435,0.2,131.45,131.44,16.87069117]
[1763425456839,0.2,131.45,131.39,6.36186348]
[1763425456840,18.12096,131.43,131.39,6.36186348]
[1763425457013,18.12096,131.44,131.39,6.36186348]
[1763425457215,3.91260156,131.4,131.39,16.15069117]
[1763425457535,3.91260156,131.4,131.39,9.78882769]
[1763425457727,4.59260156,131.4,131.39,9.78882769]
[1763425458237,4.59260156,131.4,131.37,10.27446504]
[1763425458539,3.91260156,131.38,131.36,24.48282348]
[1763425458730,3.91260156,131.38,131.37,9.78882769]
[1763425459322,3.91260156,131.38,131.37,16.15069117]
[1763425459535,3.91260156,131.38,131.35,9.23715763]
[1763425459536,4.57260156,131.38,131.35,6.36186348]
[1763425459740,22.03356156,131.36,131.33,6.36186348]
[1763425459918,3.91260156,131.34,131.33,9.78882769]
[1763425460117,3.91260156,131.34,131.33,16.15069117]
[1763425460316,4.57260156,131.34,131.32,6.36186348]
[1763425460633,3.91260156,131.33,131.32,16.15069117]
[1763425460848,0.66,131.36,131.32,10.49882769]
[1763425461137,9.34406622,131.34,131.32,18.31598532]
[1763425462553,9.34406622,131.33,131.32,9.78882769]
[1763425464534,10.00406622,131.33,131.32,9.78882769]
[1763425464715,9.34406622,131.33,131.32,9.78882769]
[1763425465514,9.34406622,131.33,131.32,16.16577012]
[1763425465826,10.00406622,131.33,131.32,6.37694243]
[1763425466242,10.00406622,131.33,131.31,16.16577012]
[1763425466433,10.00406622,131.32,131.31,16.16577012]
[1763425469048,18.78096,131.33,131.31,16.16577012]
[1763425469228,9.34406622,131.33,131.32,0.71]
[1763425469545,9.34406622,131.33,131.31,41.24738222]
[1763425469843,9.34406622,131.33,131.32,25.95459781]
[1763425470070,9.34406622,131.34,131.32,25.95459781]
[1763425470226,9.34406622,131.35,131.33,10.49882769]
[1763425470544,102.7,131.36,131.34,7.08024245]
[1763425470844,102.7,131.36,131.35,16.15907014]
[1763425471448,112.70406622,131.36,131.35,16.15907014]
[1763425471747,112.70406622,131.36,131.34,6.37024245]
[1763425472046,10.00406622,131.35,131.34,6.37024245]
[1763425472220,102.7,131.36,131.34,6.37024245]
[1763425472221,103.36,131.36,131.34,6.37024245]
[1763425472423,9.34406622,131.35,131.34,6.37024245]
[1763425473932,10.00406622,131.35,131.34,6.37024245]
[1763425474134,9.34406622,131.35,131.34,6.37024245]
[1763425475529,112.04406622,131.36,131.34,0.71]
[1763425475748,102.7,131.36,131.35,7.07713384]
[1763425475951,102.7,131.36,131.35,6.36713384]
[1763425476151,112.04406622,131.36,131.35,16.15596153]
[1763425476652,102.7,131.36,131.35,16.15596153]
[1763425476834,102.7,131.36,131.35,9.78882769]
[1763425477041,102.7,131.36,131.35,16.15521252]
[1763425477943,102.7,131.36,131.35,9.78882769]
[1763425478834,102.7,131.36,131.35,10.49882769]
[1763425479251,9.34406622,131.39,131.36,9.78882769]
[1763425479455,0.66,131.4,131.37,6.3661165]
[1763425479456,9.34406622,131.38,131.37,6.3661165]
[1763425480233,9.34406622,131.38,131.36,10.49882769]
[1763425480234,9.34406622,131.38,131.36,16.15494419]
[1763425480468,9.34406622,131.37,131.36,16.86494419]
[1763425480657,9.34406622,131.37,131.36,16.15494419]
[1763425480958,9.34406622,131.37,131.36,34.27590419]
[1763425482569,102.7,131.41,131.36,37.10694532]
[1763425482747,3.9098669,131.39,131.38,6.35929768]
[1763425483260,3.9098669,131.39,131.38,29.27668051]
[1763425483773,3.9098669,131.39,131.38,29.94668051]
[1763425484558,102.9,131.45,131.39,27.90978769]
[1763425484756,106.8098669,131.45,131.42,6.35994585]
[1763425484958,106.8098669,131.45,131.43,9.78882769]
[1763425485159,106.8098669,131.45,131.43,16.81877354]
[1763425485348,102.9,131.45,131.44,23.5186224]
[1763425485547,0.2,131.45,131.44,29.87856825]
[1763425486646,0.2,131.45,131.44,23.5186224]
[1763425487146,0.2,131.45,131.44,31.9811662]
[1763425487755,0.2,131.45,131.44,23.5186224]
[1763425487955,0.2,131.45,131.44,31.97648539]
[1763425490875,0.2,131.45,131.44,23.5186224]
[1763425491059,0.2,131.45,131.44,31.97648539]
[1763425491371,0.2,131.45,131.44,23.5186224]
[1763425491567,0.2,131.45,131.44,22.8486224]
[1763425495176,4.8198669,131.45,131.44,22.8486224]
[1763425495767,4.8198669,131.45,131.44,9.78882769]
[1763425496153,4.8198669,131.45,131.43,18.12096]
[1763425496346,18.12096,131.43,131.38,6.32812176]
[1763425496551,3.9098669,131.4,131.39,9.78882769]
[1763425496774,2.50169308,131.41,131.39,9.78882769]
[1763425497159,3.21169308,131.41,131.39,27.90978769]
[1763425497559,3.21169308,131.41,131.39,9.78882769]
[1763425497756,2.50169308,131.41,131.4,18.12096]
[1763425498203,2.50169308,131.41,131.38,9.78882769]
[1763425498470,3.21169308,131.4,131.38,34.23790945]
[1763425498652,0.71,131.4,131.38,34.23790945]
[1763425498975,0.71,131.39,131.38,27.90978769]
[1763425499153,3.21169308,131.4,131.38,27.90978769]
[1763425499357,3.21169308,131.4,131.38,34.23790945]
[1763425499571,2.50169308,131.41,131.38,34.23790945]
[1763425499875,2.50169308,131.42,131.39,6.99812176]
[1763425500057,3.98896012,131.4,131.39,6.99812176]
[1763425500249,3.98896012,131.4,131.39,6.32812176]
[1763425500453,18.83096,131.44,131.4,9.78882769]
[1763425500651,3.98838841,131.42,131.41,16.12250195]
[1763425501058,3.98838841,131.42,131.41,32.2450039]
[1763425501582,7.20008149,131.42,131.41,9.78882769]
[1763425501757,25.32104149,131.42,131.41,9.78882769]
[1763425503090,18.12096,131.41,131.39,18.12096]
[1763425503371,2.50169308,131.4,131.37,16.12250195]
[1763425503573,3.21169308,131.4,131.39,9.78882769]
[1763425503760,2.50169308,131.4,131.39,9.78882769]
[1763425504277,3.21169308,131.4,131.39,9.78882769]
[1763425504864,3.21169308,131.4,131.37,9.78882769]
[1763425505171,2.50169308,131.38,131.37,9.78882769]
[1763425505563,3.21169308,131.38,131.37,9.78882769]
[1763425507051,18.12096,131.36,131.34,34.24346195]
[1763425507256,2.50169308,131.35,131.34,9.78882769]
[1763425507458,3.21169308,131.35,131.34,9.78882769]
[1763425509666,2.50169308,131.35,131.34,9.78882769]
[1763425509872,3.21169308,131.35,131.34,9.78882769]
[1763425510955,3.21169308,131.35,131.34,16.12250195]
[1763425511180,3.21169308,131.35,131.34,9.78882769]
[1763425511481,3.21169308,131.35,131.31,6.33367426]
[1763425511784,2.50169308,131.32,131.3,16.12250195]
[1763425511961,2.50169308,131.31,131.3,16.12250195]
[1763425512377,0.65,131.31,131.3,16.12250195]
[1763425512573,3.15169308,131.31,131.3,16.12250195]
[1763425514167,3.15169308,131.31,131.3,9.78882769]
[1763425515098,3.15169308,131.31,131.3,16.15244323]
[1763425515288,0.65,131.33,131.3,16.15244323]
[1763425515474,2.50169308,131.31,131.3,16.15244323]
[1763425515678,18.12096,131.3,131.29,9.78882769]
[1763425515872,18.12096,131.3,131.25,12.82667765]
[1763425515873,21.27265308,131.3,131.27,6.36361554]
[1763425516077,18.77096,131.29,131.28,9.78882769]
[1763425516280,21.27265308,131.29,131.27,9.78882769]
[1763425516591,3.15169308,131.28,131.27,9.78882769]
[1763425517294,0.65,131.28,131.27,9.78882769]
[1763425517489,0.65,131.28,131.26,16.15244323]
[1763425517684,2.50169308,131.27,131.26,9.78882769]
[1763425518305,3.15169308,131.27,131.26,9.78882769]
[1763425518871,3.17169308,131.27,131.26,9.78882769]